bitfinex/quotes_SOLUSD_20240729
["timestamp","ask_amount","ask_price","bid_price","bid_amount"]
[1722294186807,5.4351,183.99,183.95,13.5903]
[1722294187010,5.4351,183.99,183.94,21.2306]
[1722294187236,5.4355,183.98,183.94,15.7941]
[1722294187421,5.435,183.99,183.94,21.2306]
[1722294188033,5.4354,183.98,183.94,15.7941]
[1722294189749,5.435,183.99,183.94,34.8215]
[1722294190734,0.17,184.0,183.9,35.5524]
[1722294190900,5.4361,183.96,183.9,40.9898]
[1722294191524,5.4357,183.97,183.91,5.4372]
[1722294192037,20.0,183.98,183.93,13.5917]
[1722294192331,5.4351,183.99,183.94,5.4364]
[1722294192631,5.435,183.99,183.94,5.4364]
[1722294192931,5.435,183.99,183.92,19.0289]
[1722294193127,5.4354,183.98,183.92,19.0289]
[1722294194233,5.435,183.99,183.93,5.4367]
[1722294194528,5.435,183.99,183.94,5.4364]
[1722294194748,5.6047,184.0,183.95,5.4361]
[1722294195033,20.0,183.99,183.94,5.4365]
[1722294195917,25.435,183.99,183.94,5.4365]
[1722294196324,25.435,183.99,183.93,5.4368]
[1722294196518,25.435,183.99,183.94,5.4364]
[1722294196712,20.0,183.99,183.92,19.0289]
[1722294196935,5.4354,183.98,183.92,19.0289]
[1722294197438,5.4354,183.98,183.93,5.4367]
[1722294197819,5.4351,183.99,183.93,5.4367]
[1722294200031,5.6048,184.0,183.94,5.4363]
[1722294200228,20.0,183.99,183.94,5.4363]
[1722294201435,25.4351,183.99,183.94,5.4363]
[1722294201827,20.0,183.99,183.92,13.5921]
[1722294202023,5.4345,184.01,183.95,19.0263]
[1722294202209,20.0,184.0,183.95,19.0263]
[1722294202413,25.4348,184.0,183.95,13.5904]
[1722294202910,5.4356,183.98,183.93,5.4368]
[1722294203513,25.435,184.0,183.94,5.4365]
[1722294203714,25.435,184.0,183.95,5.4362]
[1722294204117,6.60048589,184.06,183.97,13.5891]
[1722294204328,0.94686668,184.06,183.97,13.5891]
[1722294205242,0.94686668,184.06,183.97,19.0247]
[1722294205243,5.4342,184.02,183.97,19.0247]
[1722294205440,5.4345,184.01,183.95,12.79]
[1722294206337,5.4347,184.0,183.95,18.2262]
[1722294206513,6.3816045,184.0,183.95,18.2262]
[1722294206915,0.9469045,184.0,183.95,18.2262]
[1722294207324,0.9469045,184.0,183.96,5.4359]
[1722294208633,0.9469045,184.0,183.97,5.4355]
[1722294209935,0.9469045,184.0,183.96,5.4359]
[1722294210720,19.1716045,184.0,183.95,5.4362]
[1722294211729,5.435,183.99,183.94,19.0278]
[1722294212287,13.7369045,184.0,183.94,19.0278]
[1722294212637,0.9469045,184.0,183.94,19.0278]
[1722294213142,20.9469045,184.0,183.94,19.0278]
[1722294213855,5.4357,183.97,183.92,5.4371]
[1722294214034,18.2257,183.97,183.92,5.4371]
[1722294214345,5.4359,183.96,183.91,5.4374]
[1722294214950,12.79,183.95,183.9,35.5524]
[1722294215120,5.4361,183.96,183.9,40.99]
[1722294215320,0.17,183.97,183.91,12.79]
[1722294215740,20.17,183.97,183.91,12.79]
[1722294216258,25.6056,183.97,183.91,12.79]
[1722294217756,25.6056,183.97,183.92,5.4369]
[1722294218127,5.436,183.96,183.9,53.7798]
[1722294218343,5.436,183.96,183.91,5.4372]
[1722294219125,5.436,183.96,183.91,18.2272]
[1722294222157,0.9469045,184.0,183.93,13.592]
[1722294222451,13.7369045,184.0,183.93,26.382]
[1722294223555,20.0,183.99,183.93,26.382]
[1722294223735,25.4351,183.99,183.94,5.4365]
[1722294224627,20.0,183.99,183.96,5.4358]
[1722294224860,20.0,183.99,183.94,5.4362]
[1722294225032,25.4351,183.99,183.94,5.4362]
[1722294226459,5.4354,183.98,183.93,31.8188]
[1722294226672,5.4356,183.97,183.93,26.382]
[1722294226846,5.4356,183.97,183.93,27.46921501]
[1722294227365,0.9470967,183.98,183.93,32.90591501]
[1722294227939,0.9470967,183.98,183.93,31.8187]
[1722294228768,6.3824967,183.98,183.93,31.8187]
[1722294229739,0.9470967,183.98,183.91,5.4372]
[1722294230236,5.4356,183.97,183.92,5.4371]
[1722294232443,0.9470967,183.98,183.93,5.4367]
[1722294232645,6.3824967,183.98,183.93,5.4367]
[1722294233766,0.9470967,183.98,183.94,5.4365]
[1722294234058,32.79,184.0,183.95,13.5899]
[1722294234059,20.0,184.0,183.95,13.5899]
[1722294234263,0.94692492,184.01,183.95,13.5899]
[1722294234460,20.94692492,184.01,183.95,26.3799]
[1722294234844,20.94692492,184.01,183.95,13.5899]
[1722294235765,26.38142492,184.01,183.96,5.4359]
[1722294236351,5.4348,184.0,183.95,19.0261]
[1722294236549,5.435,183.99,183.95,13.5899]
[1722294239346,5.4347,184.0,183.95,19.0261]
[1722294240647,5.4351,183.99,183.95,13.5899]
[1722294241543,5.4357,183.97,183.92,13.5927]
[1722294241865,20.94692492,184.01,183.9,21.9588]
[1722294242041,5.4368,183.93,183.9,21.9588]
[1722294242453,5.4372,183.92,183.88,13.5951]
[1722294242963,5.4374,183.91,183.86,21.586]
[1722294243173,12.79,183.88,183.84,13.598]
[1722294243844,12.79,183.85,183.77,6.3226]
[1722294244066,12.79,183.79,183.75,5.442]
[1722294244366,12.79,183.76,183.7,5.4436]
[1722294244566,12.79,183.74,183.69,21.3889]
[1722294244782,12.79,183.74,183.69,15.945]
[1722294244987,12.79,183.75,183.71,5.4433]
[1722294245143,12.79,183.77,183.72,5.443]
[1722294245350,32.96,183.76,183.71,13.6079]
[1722294245874,20.0,183.76,183.71,19.051]
[1722294246278,32.79,183.76,183.71,13.6079]
[1722294246856,6.92533929,183.82,183.72,12.79]
[1722294247054,12.79,183.8,183.73,12.79]
[1722294247271,5.4415,183.77,183.71,19.051]
[1722294247854,5.6119,183.76,183.71,13.6079]
[1722294248069,5.4419,183.76,183.71,13.6079]
[1722294248872,65.17,183.75,183.69,15.945]
[1722294249059,45.0,183.75,183.69,15.945]
[1722294249259,20.17,183.74,183.68,5.4439]
[1722294249656,25.6124,183.74,183.68,5.4439]
[1722294250673,5.4427,183.73,183.67,19.0555]
[1722294251064,5.4431,183.72,183.67,13.611]
[1722294252257,5.4431,183.72,183.67,19.0555]
[1722294252452,5.4431,183.72,183.67,13.611]
[1722294253062,5.4427,183.73,183.67,19.0555]
[1722294253280,20.0,183.72,183.68,5.4441]
[1722294253969,20.17,183.74,183.68,5.4441]
[1722294254654,25.6126,183.74,183.68,5.4441]
[1722294255756,5.4428,183.73,183.68,5.4441]
[1722294255959,20.0,183.72,183.68,5.4441]
[1722294257064,5.4434,183.71,183.66,11.7672]
[1722294257357,5.4444,183.68,183.66,6.3226]
[1722294257667,0.17,183.7,183.66,6.3226]
[1722294257867,5.444,183.69,183.66,6.3226]
[1722294258092,5.6136,183.7,183.66,6.3226]
[1722294259096,5.4439,183.69,183.66,6.3226]
[1722294260289,0.17,183.7,183.66,6.3226]
[1722294260588,20.17,183.7,183.66,6.3226]
[1722294261780,0.94834084,183.77,183.67,13.6113]
[1722294261964,5.4421,183.76,183.67,13.6113]
[1722294262165,5.4421,183.76,183.71,5.4433]
[1722294262166,5.4418,183.76,183.71,5.4433]
[1722294262480,15.7032,183.81,183.71,5.4433]
[1722294262690,0.94818444,183.8,183.72,5.4429]
[1722294262861,5.4414,183.78,183.73,5.4426]
[1722294263190,5.4414,183.78,183.73,15.1136]
[1722294263790,5.4411,183.79,183.73,28.7204]
[1722294264278,25.4414,183.78,183.73,15.1136]
[1722294264581,20.0,183.78,183.73,15.1136]
[1722294264773,5.4424,183.74,183.69,34.8612]
[1722294264973,5.4421,183.75,183.7,5.4436]
[1722294265487,5.4418,183.76,183.7,5.4436]
[1722294265686,5.4422,183.75,183.7,5.4436]
[1722294266168,5.6118,183.77,183.71,5.4431]
[1722294266368,20.0,183.76,183.72,5.4429]
[1722294266573,0.94818444,183.8,183.72,5.4429]
[1722294266862,0.94818444,183.8,183.74,5.4424]
[1722294267089,0.94818444,183.8,183.72,13.6076]
[1722294267275,13.6001,183.83,183.72,13.6076]
[1722294267477,5.4409,183.8,183.74,5.4424]
[1722294267676,5.441,183.79,183.74,5.4424]
[1722294267876,14.54810374,183.83,183.72,13.6076]
[1722294268079,5.4416,183.77,183.72,13.6076]
[1722294268671,5.4416,183.77,183.72,19.0505]
[1722294268990,5.4412,183.79,183.73,5.4427]
[1722294269170,20.17,183.78,183.73,5.4427]
[1722294269574,25.6113,183.78,183.73,5.4427]
[1722294271871,25.6113,183.78,183.72,19.0506]
[1722294272070,20.17,183.78,183.7,5.4434]
[1722294272302,5.4424,183.75,183.7,5.4434]
[1722294273578,0.17,183.74,183.69,15.8082]
[1722294274891,5.4428,183.73,183.69,15.8082]
[1722294275297,5.6124,183.74,183.69,21.2521]
[1722294276097,5.4424,183.74,183.69,21.2521]
[1722294276296,20.0,183.78,183.69,15.8082]
[1722294276488,20.0,183.78,183.71,5.443]
[1722294276489,5.4419,183.76,183.71,5.443]
[1722294276795,20.0,183.75,183.71,5.443]
[1722294277183,20.0,183.75,183.7,5.4436]
[1722294279098,20.0,183.75,183.69,15.8082]
[1722294279276,20.0,183.76,183.69,15.8082]
[1722294279477,0.17,183.75,183.69,15.8082]
[1722294279675,5.4427,183.74,183.69,21.252]
[1722294281681,0.17,183.75,183.69,15.8082]
[1722294281879,5.443,183.72,183.67,5.4445]
[1722294283004,5.4433,183.71,183.66,11.7674]
[1722294285998,5.4437,183.7,183.66,6.3226]
[1722294286201,5.614,183.69,183.66,6.3226]
[1722294286412,0.17,183.73,183.66,6.3226]
[1722294286712,5.4436,183.7,183.66,6.3226]
[1722294286918,5.4432,183.72,183.66,11.7673]
[1722294287206,20.17,183.71,183.66,11.7673]
[1722294287411,20.0,183.71,183.66,11.7673]
[1722294287785,0.94856513,183.7,183.66,11.7673]
[1722294287981,6.39216513,183.7,183.66,11.7673]
[1722294288210,6.39216513,183.7,183.66,6.3226]
[1722294288598,0.94856513,183.7,183.65,15.0785]
[1722294288799,0.17,183.69,183.65,15.0785]
[1722294289212,5.4442,183.68,183.65,15.0785]
[1722294289715,5.6145,183.67,183.62,5.4459]
[1722294289908,5.4445,183.67,183.62,5.4459]
[1722294292713,0.17,183.69,183.61,19.8641]
[1722294292714,5.4452,183.65,183.61,19.8641]
[1722294292895,0.94856513,183.7,183.61,19.8641]
[1722294293096,0.17,183.69,183.61,6.2484]
[1722294293405,0.17,183.69,183.65,5.4451]
[1722294293601,0.17,183.69,183.66,5.4448]
[1722294293801,20.94856513,183.7,183.66,5.4448]
[1722294294005,20.94856513,183.7,183.67,5.4445]
[1722294294528,0.94856513,183.7,183.67,5.4445]
[1722294295226,0.94856513,183.7,183.66,5.4448]
[1722294295418,0.94856513,183.7,183.65,13.6121]
[1722294296218,0.94856513,183.7,183.67,5.4444]
[1722294297024,5.4424,183.75,183.69,5.4439]
[1722294297200,6.39069794,183.74,183.68,13.6105]
[1722294297710,6.39069794,183.74,183.69,5.4438]
[1722294298119,5.4429,183.73,183.68,13.6105]
[1722294298599,0.94819794,183.74,183.69,5.4438]
[1722294298801,6.39059794,183.74,183.69,5.4438]
[1722294300020,0.94819794,183.74,183.69,5.4438]
[1722294300214,0.94819794,183.74,183.69,1.08863002]
[1722294300421,0.94819794,183.74,183.71,5.4432]
[1722294300923,0.94819794,183.74,183.73,5.4427]
[1722294301234,0.9480835,183.76,183.73,5.4427]
[1722294301607,0.9480835,183.76,183.72,6.53151754]
[1722294302424,0.9480835,183.76,183.72,5.443]
[1722294302630,5.4406,183.81,183.75,5.4421]
[1722294302827,5.4409,183.8,183.74,13.606]
[1722294303009,5.441,183.79,183.74,13.606]
[1722294304913,5.65762433,183.83,183.7,13.6085]
[1722294305121,65.17,183.82,183.7,13.6085]
[1722294305417,5.4415,183.78,183.7,13.6085]
[1722294305931,15.7032,183.79,183.67,1.08833829]
[1722294306234,25.67,183.75,183.61,6.2881]
[1722294306445,5.446,183.62,183.61,6.2881]
[1722294306621,5.446,183.62,183.61,36.2881]
[1722294306939,13.6082,183.72,183.61,6.2881]
[1722294307113,20.17,183.71,183.61,6.2881]
[1722294307306,5.4449,183.66,183.61,6.2881]
[1722294307508,5.4445,183.68,183.61,11.7344]
[1722294307727,20.17,183.71,183.62,13.6145]
[1722294308031,5.4442,183.68,183.62,19.0605]
[1722294309872,5.4445,183.67,183.62,13.6145]
[1722294310009,20.0,183.71,183.62,13.6145]
[1722294310337,5.4439,183.69,183.63,5.4454]
[1722294310721,5.4439,183.69,183.64,5.4454]
[1722294311930,5.4439,183.69,183.65,1.08888314]
[1722294312118,5.4439,183.69,183.64,5.4454]
[1722294312519,5.4439,183.69,183.65,1.08886735]
[1722294313035,5.4439,183.69,183.64,5.4454]
[1722294313225,5.4439,183.69,183.63,6.53456021]
[1722294315021,5.4447,183.67,183.62,19.0605]
[1722294316421,5.4447,183.67,183.62,13.6145]
[1722294317550,5.4447,183.67,183.62,19.0605]
[1722294319829,5.4447,183.67,183.63,1.08897749]
[1722294320439,5.4447,183.67,183.62,19.0605]
[1722294320645,13.6092,183.7,183.61,6.2881]
[1722294320853,20.17,183.69,183.61,6.2881]
[1722294321147,5.4455,183.64,183.61,6.2881]
[1722294322741,20.0,183.63,183.57,6.0622]
[1722294322954,13.6114,183.67,183.57,6.0622]
[1722294323122,6.39498209,183.62,183.57,6.0622]
[1722294323322,0.94898209,183.62,183.57,19.6809]
[1722294323518,5.4455,183.64,183.59,5.4467]
[1722294323735,20.0,183.63,183.59,5.4467]
[1722294325349,25.4458,183.63,183.58,5.4472]
[1722294327134,25.4458,183.63,183.58,18.2872]
[1722294327934,5.446,183.62,183.58,12.84]
[1722294328242,5.446,183.62,183.57,32.5209]
[1722294328756,5.4463,183.61,183.57,32.5209]
[1722294329440,25.446,183.63,183.57,37.9684]
[1722294329655,5.446,183.62,183.57,37.9684]
[1722294329870,5.446,183.62,183.58,1.08920026]
[1722294330060,20.0,183.63,183.58,1.08920026]
[1722294330061,20.0,183.63,183.59,12.84]
[1722294330240,20.0,183.63,183.6,1.08916168]
[1722294330723,5.4457,183.64,183.6,1.08916168]
[1722294330925,0.94890121,183.65,183.62,12.84]
[1722294331128,12.84,183.7,183.63,13.92895927]
[1722294331355,0.94856266,183.69,183.63,13.92895927]
[1722294331650,6.39276266,183.69,183.63,13.92895927]
[1722294331843,6.39276266,183.69,183.63,19.37455927]
[1722294332431,5.4443,183.68,183.63,19.37455927]
[1722294332631,5.4443,183.68,183.63,13.92895927]
[1722294334744,5.4443,183.68,183.63,12.84]
[1722294337547,5.4443,183.68,183.62,18.286]
[1722294338942,0.94856266,183.69,183.61,26.4557]
[1722294339253,12.84,183.68,183.61,26.4557]
[1722294339456,12.84,183.68,183.61,13.6157]
[1722294339637,12.84,183.68,183.56,15.1855]
[1722294339638,5.4457,183.63,183.59,12.84]
[1722294339841,5.4461,183.62,183.58,12.84]
[1722294340054,5.4457,183.64,183.58,13.92927658]
[1722294340354,5.4457,183.64,183.59,5.4468]
[1722294340938,5.4459,183.63,183.59,1.08914884]
[1722294341741,12.84,183.68,183.61,12.84]
[1722294341948,25.4448,183.67,183.62,18.2859]
[1722294342258,0.94856266,183.69,183.66,12.84]
[1722294342462,5.4428,183.73,183.68,18.2842]
[1722294342757,5.4428,183.73,183.7,12.84]
[1722294343136,5.4428,183.73,183.69,13.92856069]
[1722294343338,5.4431,183.72,183.69,13.92856069]
[1722294343651,5.4433,183.72,183.66,26.4514]
[1722294344253,5.4433,183.72,183.66,31.896]
[1722294344760,5.4433,183.72,183.67,5.4445]
[1722294345446,5.4433,183.72,183.66,19.0562]
[1722294345646,13.6042,183.77,183.66,13.6114]
[1722294345852,65.17,183.76,183.66,13.6114]
[1722294346763,5.4437,183.7,183.66,13.6114]
[1722294347764,5.4437,183.7,183.65,5.4451]
[1722294347971,5.4437,183.7,183.66,30.0]
[1722294348163,5.4433,183.72,183.66,35.4447]
[1722294348358,5.4434,183.71,183.66,35.4447]
[1722294348859,65.17,183.76,183.66,43.6119]
[1722294349165,5.4427,183.74,183.69,5.4439]
[1722294349362,20.0,183.73,183.68,5.4442]
[1722294350263,25.4428,183.73,183.68,5.4442]
[1722294350471,20.0,183.73,183.63,22.358]
[1722294350649,5.444,183.69,183.63,27.8034]
[1722294350845,5.4433,183.72,183.66,5.4447]
[1722294351067,13.6053,183.76,183.66,5.4447]
[1722294351267,20.17,183.75,183.66,5.4447]
[1722294351773,5.4434,183.71,183.67,1.08869471]
[1722294351965,5.4434,183.71,183.68,1.08867727]
[1722294352368,5.4434,183.71,183.66,5.4447]
[1722294352873,5.443,183.73,183.67,5.4444]
[1722294353060,20.0,183.72,183.67,5.4444]
[1722294353259,25.4431,183.72,183.67,5.4444]
[1722294353462,25.4431,183.72,183.68,1.0886298]
[1722294353862,25.4431,183.72,183.67,5.4444]
[1722294354376,5.4434,183.71,183.64,14.70142997]
[1722294354576,5.4434,183.71,183.65,31.08864888]
[1722294354786,5.4429,183.73,183.65,31.08864888]
[1722294354973,0.94827326,183.78,183.65,31.08864888]
[1722294354974,0.94827326,183.78,183.67,13.6112]
[1722294355165,0.94827326,183.78,183.66,45.0]
[1722294355166,5.4421,183.76,183.69,13.6092]
[1722294355478,20.94827326,183.78,183.7,21.4054]
[1722294355479,20.0,183.75,183.7,21.4054]
[1722294355779,20.94827326,183.78,183.7,21.4054]
[1722294356167,5.4427,183.74,183.7,21.4054]
[1722294356473,5.4428,183.73,183.7,51.4054]
[1722294357176,20.94827326,183.78,183.7,51.4054]
[1722294357485,0.94827326,183.78,183.71,1.08853354]
[1722294358356,5.4416,183.77,183.7,21.4054]
[1722294358665,0.94827326,183.78,183.71,1.08844245]
[1722294359568,5.4421,183.76,183.71,1.08844245]
[1722294359773,5.4422,183.75,183.71,1.08844245]
[1722294360076,5.4422,183.75,183.7,26.849]
[1722294360386,6.38977326,183.78,183.73,5.4427]
[1722294360565,5.4415,183.78,183.74,1.08827081]
[1722294361076,5.441,183.79,183.74,1.08827081]
[1722294361276,30.25055308,183.84,183.71,50.4431]
[1722294361489,5.4422,183.75,183.7,35.0138]
[1722294361658,5.4422,183.75,183.71,30.0]
[1722294361864,5.4419,183.76,183.71,35.4432]
[1722294362194,13.6002,183.83,183.73,13.6069]
[1722294362423,20.0,183.82,183.74,5.4422]
[1722294362571,5.4407,183.8,183.75,5.4419]
[1722294362758,20.0,183.79,183.73,13.6069]
[1722294363070,27.1932,183.87,183.73,13.6069]
[1722294363071,15.7032,183.89,183.77,15.9256]
[1722294363266,15.7032,183.89,183.8,5.4406]
[1722294363473,0.94778248,183.89,183.79,13.6024]
[1722294363780,0.94778248,183.89,183.77,15.9256]
[1722294363781,5.4406,183.81,183.77,15.9256]
[1722294363972,5.4407,183.8,183.77,15.9256]
[1722294365169,5.4403,183.82,183.77,15.9256]
[1722294365355,5.4403,183.82,183.78,1.08819142]
[1722294365977,5.4403,183.82,183.77,21.3671]
[1722294366191,0.94778248,183.89,183.79,5.4408]
[1722294366388,0.94778248,183.89,183.8,1.08794139]
[1722294366389,5.4392,183.85,183.8,1.08794139]
[1722294366589,5.4392,183.85,183.79,5.4408]
[1722294366590,0.94778248,183.89,183.81,13.6004]
[1722294367096,0.94778248,183.89,183.82,6.489]
[1722294367267,5.4389,183.86,183.82,6.489]
[1722294367469,0.94778248,183.89,183.82,6.489]
[1722294367470,5.4392,183.85,183.82,6.489]
[1722294367883,5.4396,183.84,183.82,6.489]
[1722294368084,5.4398,183.83,183.82,6.489]
[1722294368293,5.4398,183.83,183.77,41.421]
[1722294368592,5.4397,183.84,183.78,35.4412]
[1722294369693,5.4397,183.84,183.78,5.4412]
[1722294369873,14.54358248,183.89,183.77,41.4211]
[1722294369874,5.4401,183.82,183.77,41.4211]
[1722294370073,5.4401,183.82,183.77,35.9796]
[1722294370272,5.4401,183.82,183.77,41.4211]
[1722294370473,5.4398,183.83,183.78,1.08815812]
[1722294370673,5.4398,183.83,183.77,35.9796]
[1722294371593,5.4398,183.83,183.78,5.441]
[1722294371773,5.4395,183.84,183.78,5.441]
[1722294371969,20.0,183.83,183.78,5.441]
[1722294372494,25.4398,183.83,183.78,6.52907706]
[1722294372786,25.4398,183.83,183.78,5.441]
[1722294372978,25.4398,183.83,183.79,1.08808538]
[1722294373181,25.4398,183.83,183.78,5.441]
[1722294373498,5.4402,183.82,183.77,35.9796]
[1722294373803,20.0,183.83,183.77,22.3763]
[1722294373990,20.0,183.85,183.77,22.3763]
[1722294374189,13.5999,183.83,183.77,22.3763]
[1722294374493,5.4418,183.76,183.71,26.9522]
[1722294374906,45.17,183.82,183.71,21.5092]
[1722294375085,20.0,183.81,183.71,21.5092]
[1722294375287,5.4422,183.75,183.71,21.5092]
[1722294375579,5.4425,183.74,183.71,6.4874]
[1722294375785,5.4425,183.74,183.69,19.0531]
[1722294376379,5.4422,183.75,183.7,5.4435]
[1722294377391,5.4418,183.77,183.71,6.53187139]
[1722294377592,20.0,183.76,183.72,5.443]
[1722294377971,25.4418,183.76,183.71,5.4433]
[1722294378387,20.0,183.76,183.69,13.6092]
[1722294378592,0.17,183.77,183.69,19.0529]
[1722294378796,45.17,183.78,183.69,19.0529]
[1722294378995,20.0,183.77,183.69,19.0529]
[1722294379195,0.17,183.76,183.69,19.0529]
[1722294379702,0.17,183.76,183.69,13.6092]
[1722294380003,45.17,183.76,183.69,13.6092]
[1722294380188,5.443,183.73,183.67,28.4693]
[1722294380379,5.443,183.73,183.68,5.4442]
[1722294380574,20.0,183.75,183.69,13.6096]
[1722294380793,20.0,183.82,183.67,23.0251]
[1722294381089,5.4422,183.75,183.69,5.4437]
[1722294381295,5.4418,183.77,183.71,5.4431]
[1722294381488,20.0,183.76,183.71,5.4431]
[1722294382193,20.0,183.76,183.72,5.443]
[1722294382713,25.66,183.84,183.74,13.6061]
[1722294382878,5.441,183.79,183.74,19.0484]
[1722294383581,0.94808066,183.79,183.75,5.4421]
[1722294383803,0.94808066,183.79,183.76,1.08818846]
[1722294384200,0.94808066,183.79,183.75,16.5937]
[1722294384587,0.94808066,183.79,183.77,5.4414]
[1722294384788,0.94808066,183.79,183.76,5.4418]
[1722294385084,0.94808066,183.79,183.75,16.5937]
[1722294385287,5.4413,183.78,183.75,16.5937]
[1722294386384,6.38908066,183.79,183.75,16.5937]
[1722294387494,0.94808066,183.79,183.75,16.5937]
[1722294387690,0.94808066,183.79,183.77,5.4413]
[1722294388010,0.94808066,183.79,183.75,16.5937]
[1722294388210,0.94808066,183.79,183.75,22.0358]
[1722294388384,0.94808066,183.79,183.75,16.5937]
[1722294388585,6.38928066,183.79,183.75,16.5937]
[1722294389308,5.4421,183.75,183.74,6.3884]
[1722294389517,5.4421,183.75,183.71,15.2181]
[1722294389694,5.4419,183.76,183.71,20.6614]
[1722294389893,5.4419,183.76,183.72,1.08846428]
[1722294390089,0.94808066,183.79,183.72,5.4429]
[1722294390420,0.94808066,183.79,183.75,5.4421]
[1722294391115,0.94808066,183.79,183.76,5.4418]
[1722294391495,0.94808066,183.79,183.75,19.0475]
[1722294394096,6.38908066,183.79,183.73,5.4425]
[1722294394406,5.4413,183.78,183.73,5.4425]
[1722294395996,6.38908066,183.79,183.74,5.4424]
[1722294396710,0.94808066,183.79,183.76,5.4418]
[1722294397714,0.94808066,183.79,183.75,5.4421]
[1722294398312,0.94808066,183.79,183.76,5.4418]
[1722294398514,0.94808066,183.79,183.75,5.4421]
[1722294400001,0.94808066,183.79,183.74,13.6055]
[1722294400201,6.38908066,183.79,183.74,19.0479]
[1722294402608,0.94808066,183.79,183.75,5.4421]
[1722294406133,6.38908066,183.79,183.74,19.0479]
[1722294407031,5.4418,183.76,183.71,20.6612]
[1722294407402,5.4422,183.75,183.71,15.2181]
[1722294407700,0.9482613,183.75,183.72,5.443]
[1722294408201,20.0,183.83,183.75,5.442]
[1722294408202,5.4406,183.81,183.75,5.442]
[1722294408404,0.94806782,183.79,183.76,1.08825123]
[1722294408711,0.94806782,183.79,183.76,20.13435482]
[1722294409416,0.94806782,183.79,183.77,1.08816197]
[1722294410838,0.94806782,183.79,183.76,13.6046]
[1722294412534,6.38906782,183.79,183.74,5.4424]
[1722294412705,6.38906782,183.79,183.74,18.2624]
[1722294414146,6.38906782,183.79,183.75,12.82]
[1722294414961,6.38906782,183.79,183.74,18.2624]
[1722294415248,0.94806782,183.79,183.73,12.82]
[1722294415532,18.2615,183.78,183.72,5.443]
[1722294415717,5.4415,183.78,183.72,18.263]
[1722294416623,0.94806782,183.79,183.74,18.2623]
[1722294416814,0.94806782,183.79,183.73,13.6068]
[1722294416815,0.94806782,183.79,183.77,12.82]
[1722294417014,0.94806782,183.79,183.77,13.90816167]
[1722294417636,0.94806782,183.79,183.77,1.08816167]
[1722294418438,0.94806782,183.79,183.78,18.2612]
[1722294418607,32.82,183.86,183.78,18.2612]
[1722294418827,0.94788129,183.82,183.78,18.2612]
[1722294419049,20.0,183.84,183.78,18.2612]
[1722294419249,0.94786793,183.82,183.78,18.2612]
[1722294419556,6.38796793,183.82,183.79,1.08808126]
[1722294420250,0.94786793,183.82,183.79,1.08808111]
[1722294420453,0.94786793,183.82,183.8,13.90801089]
[1722294420663,5.4395,183.84,183.81,12.82]
[1722294420835,0.94773032,183.84,183.81,12.82]
[1722294421629,6.38733032,183.84,183.82,1.08791287]
[1722294422061,6.38733032,183.84,183.81,12.82]
[1722294422260,6.38733032,183.84,183.81,13.90791002]
[1722294422635,6.38733032,183.84,183.8,12.82]
[1722294423051,6.38733032,183.84,183.81,1.08791591]
[1722294423562,5.4396,183.84,183.81,1.08791591]
[1722294423860,5.4396,183.84,183.79,18.2609]
[1722294425366,12.82,183.87,183.8,19.34851577]
[1722294425660,25.4389,183.86,183.81,18.2603]
[1722294425957,25.4389,183.86,183.82,12.82]
[1722294426260,25.4389,183.86,183.83,1.087787]
[1722294428036,25.4389,183.86,183.81,18.2603]